[Event "15th Arad Open 2022"]
[Site "Arad"]
[Date "2022.08.10"]
[Round "4.8"]
[White "Secheres, Adrian-Simion"]
[Black "Samu, Sorin-Mihai"]
[Result "1-0"]
[ECO "A60"]
[WhiteElo "2360"]
[BlackElo "1952"]
[Annotator "TA"]
[PlyCount "73"]
[EventDate "2022.08.08"]
[EventType "swiss"]
[EventCountry "ROU"]
[SourceTitle "playchess.com"]
[Source "ChessBase"]
[SourceQuality "1"]
[TimeControl "5400+30"]

{[%evp 11,73,63,107,100,91,103,102,89,81,82,139,139,144,129,138,149,179,179,238,231,208,212,234,243,221,197,232,190,187,185,174,175,196,185,395,427,408,418,397,379,496,475,477,472,565,504,1027,991,1073,1049,1560,1502,2946,5741,29975,29976,29976,29975,12838,12839,12839,12839,6817,4527]} 1. d4 {[%emt 0:01:24]} Nf6 {[%emt 0:00:11]} 2. c4 {[%emt 0:00:15]} c5 {[%emt 0:00:28]} 3. d5 {[%emt 0:00:25]} e6 {[%emt 0:00:55]} 4. Nc3 {[%emt 0:00:16]} exd5 {[%emt 0:00:32]} 5. cxd5 {[%emt 0:00:07]} d6 {[%emt 0:00:51]} 6. Nf3 {[%emt 0:00:35]} Bf5 {[%emt 0:00:23]} 7. Nd2 {[%emt 0:04:37] A60: Modern Benoni: Early Divergences.} Be7 {[%emt 0:00:57]} 8. e4 {[%emt 0:00:30][%cal Be2e4,Be4e5,Be5e6][%mdl 32]} Bg6 {[%emt 0:00:10]} 9. Be2 {[%emt 0:03:31] White is better.} O-O {[%emt 0:00:14]} 10. O-O {[%emt 0:02:32] [#]} Ne8 $146 {[%emt 0:03:24] [#]} (10... Nbd7 $142) ({Predecessor:} 10... Nbd7 11. h3 Re8 12. f4 h6 13. a4 Bf8 14. Bf3 c4 15. f5 Bh7 16. Nxc4 Ne5 17. Nxe5 dxe5 {1-0 (52) Smirnov,A (2436)-Rahatbekov,T (1399) Tornelo INT 2020}) 11. f4 $1 $16 {[%emt 0:03:18] Black must now prevent f5.} f5 {[%emt 0:01:15]} 12. e5 {[%emt 0:01:25]} Nd7 {[%emt 0:00:25]} 13. Nc4 {[%emt 0:04:47] White is more active.} a6 {[%emt 0:01:55] [#]} 14. a4 {[%emt 0:01:33] Against b5} b6 {[%emt 0:00:44]} (14... Nb6 {keeps fighting.} 15. Ne3 Nd7) 15. b3 {[%emt 0:08:50]} Rb8 {[%emt 0:01:57]} 16. Bb2 {[%emt 0:03:25]} Qc7 {[%emt 0:03:23]} 17. e6 {[%emt 0:04:45]} Ndf6 {[%emt 0:00:19]} 18. Ne3 {[%emt 0:00:44]} Qb7 {[%emt 0:00:20]} 19. Qd3 {[%emt 0:11:39]} Nc7 {[%emt 0:01:09]} 20. Bf3 {[%emt 0:03:45]} (20. Nxf5 $6 Bxf5 21. Qxf5 Nfxd5 22. Nxd5 Nxd5 $16) 20... b5 {[%emt 0:01:45]} 21. a5 {[%emt 0:05:42]} (21. Nxf5 Bxf5 22. Qxf5 bxa4 $11) 21... Qa7 {[%emt 0:09:38][%cal Oc5c4]} 22. Kh1 {[%emt 0:04:09]} ({Worse is} 22. Nxf5 Bxf5 23. Qxf5 c4+ 24. Kh1 b4 $11) 22... Ng4 $2 {[%emt 0:03:15]} (22... Kh8 23. Ne2 (23. Nxf5 c4 $14) 23... Ng8) 23. Bxg4 $18 {[%emt 0:01:47]} fxg4 {[%emt 0:00:06]} 24. f5 {[%emt 0:00:16]} Bh5 {[%emt 0:04:59]} 25. Ne4 {[%emt 0:02:42]} c4 {[%emt 0:05:41]} 26. bxc4 {[%emt 0:01:52]} bxc4 {[%emt 0:00:52]} 27. Nxc4 {[%emt 0:00:10]} Rb5 {[%emt 0:02:09]} 28. Qc3 {[%emt 0:07:37][%csl Gb2][%cal Rc3g7]} Bf6 {[%emt 0:03:45]} (28... Ne8 $142 29. Qd2 Qb7) 29. Nxf6+ {[%emt 0:00:21]} gxf6 {[%emt 0:00:38]} 30. Nxd6 {[%emt 0:00:46]} Rc5 {[%emt 0:01:57]} 31. Qd4 {[%emt 0:01:17]} Ne8 {[%emt 0:07:38]} 32. Nxe8 {[%emt 0:01:03]} Bxe8 {[%emt 0:01:12]} 33. Ba3 {[%emt 0:00:19]} Rc7 {[%emt 0:00:34]} 34. Qxa7 {[%emt 0:00:05]} Rxa7 {[%emt 0:00:13]} 35. Bxf8 {[%emt 0:00:07] White is clearly winning.} Kxf8 {[%emt 0:00:05]} 36. d6 {[%emt 0:00:05] Intending Rfd1 and mate.} Bb5 {[%emt 0:00:32]} 37. Rfc1 {[%emt 0:00:36] Weighted Error Value: White=0.06 (flawless) /Black=0.59} 1-0

[Event "15th Arad Open 2022"]
[Site "Arad"]
[Date "2022.08.10"]
[Round "4.10"]
[White "Paraschiv, Petronela-Alexandra"]
[Black "Kazarian, Anna-Maja"]
[Result "0-1"]
[ECO "C01"]
[WhiteElo "1867"]
[BlackElo "2139"]
[Annotator "TA"]
[PlyCount "174"]
[EventDate "2022.08.08"]
[EventType "swiss"]
[EventCountry "ROU"]
[SourceTitle "playchess.com"]
[Source "ChessBase"]
[SourceQuality "1"]
[TimeControl "5400+30"]

{[%evp 12,174,24,23,37,27,18,10,6,7,7,14,17,13,32,28,41,0,0,0,0,7,10,0,10,0,0,0,0,0,0,0,0,0,0,0,8,-25,-27,-47,-76,-71,0,0,0,0,0,-14,-9,-14,0,0,0,0,0,0,0,0,0,0,1,0,10,3,12,1,8,0,8,0,0,-8,0,0,0,-271,-273,-270,-264,-231,-227,-820,-820,-803,-808,-803,-795,-776,-776,-760,-747,-747,-740,-710,-705,-655,-634,-2342,-2307,-2026,-1906,-1113,-1004,-1653,-1471,-3573,-3468,-3308,-3145,-29964,-2225,-2126,-316,-304,-299,-996,-869,-767,-868,-1237,-1037,-929,-914,-29958,-449,-29953,-12761,-3980,-7860,-9935,-5381,-29970,-29969,-29969,-29970,-29970,-29971,-29970,-29971,-29967,-29971,-29970,-29960,-29973,-29972,-29975,-29957,-29954,-29954,-29948,-29946,-29956,-29959,-29971,-29972,-29969,-29970,-5876,-5876,-12791,-2606,-29986,-29987,-29990,-29991]} 1. e4 {[%emt 0:01:46]} e6 {[%emt 0:00:16]} 2. d4 {[%emt 0:00:04]} d5 {[%emt 0:00:03]} 3. exd5 {[%emt 0:00:03]} exd5 {[%emt 0:00:04]} 4. Nf3 {[%emt 0:00:04]} Nf6 {[%emt 0:00:05]} 5. Bd3 {[%emt 0:00:03]} Bg4 {[%emt 0:01:14]} 6. O-O {[%emt 0:02:18]} Be7 {[%emt 0:00:09]} 7. h3 {[%emt 0:00:25]} Bh5 {[%emt 0:00:09] C01: French: Exchange Variation.} 8. Bf4 {[%emt 0:00:26]} O-O {[%emt 0:02:32]} 9. Nbd2 {[%emt 0:01:29]} Bd6 {[%emt 0:11:23] The position is equal.} 10. Bxd6 {[%emt 0:02:48]} Qxd6 {[%emt 0:00:05]} 11. c3 {[%emt 0:00:51]} Nbd7 {[%emt 0:00:44]} 12. Qc2 {[%emt 0:02:31] [#]} b6 $146 {[%emt 0:08:07]} ({Predecessor:} 12... Bg6 13. Rfe1 Rfe8 14. Bxg6 hxg6 15. Rxe8+ Rxe8 16. Ne5 Nxe5 17. dxe5 Qxe5 18. Nf3 Qe4 19. Qb3 b6 20. Re1 Qf4 21. Rxe8+ Nxe8 22. Qxd5 Qd6 23. Qxd6 {½-½ (23) Robers,F-Goetz,D freechess.de 2020}) 13. Rfe1 {[%emt 0:06:35]} Rfe8 {[%emt 0:00:20]} 14. a4 {[%emt 0:04:55]} c5 {[%emt 0:04:50]} 15. b3 {[%emt 0:10:49]} Bg6 {[%emt 0:07:26]} 16. Bxg6 {[%emt 0:03:28]} hxg6 {[%emt 0:00:07]} 17. Qd3 {[%emt 0:02:12]} Nh5 {[%emt 0:05:03]} 18. Nf1 {[%emt 0:01:12]} Nf4 {[%emt 0:02:24]} 19. Qd2 {[%emt 0:00:32]} Qf6 {[%emt 0:12:48][%cal Of4h3]} 20. Re3 {[%emt 0:03:46]} cxd4 {[%emt 0:06:02]} 21. cxd4 {[%emt 0:00:26]} Rxe3 {[%emt 0:01:48]} 22. Qxe3 {[%emt 0:00:14]} Rc8 {[%emt 0:00:09]} 23. Re1 {[%emt 0:02:29]} Nf8 {[%emt 0:06:01]} 24. Kh2 {[%emt 0:09:28]} Rc2 {[%emt 0:09:28]} 25. g3 {[%emt 0:04:39] [#]} Nd3 {[%emt 0:01:44]} 26. Re2 {[%emt 0:01:42] [#]} Rxe2 {[%emt 0:01:45] 0x0.0002da609239dp-1022s more active pieces.} (26... Nb4 $1 $17) 27. Qxe2 $11 {[%emt 0:00:08]} Nc1 {[%emt 0:01:27]} 28. Qe3 {[%emt 0:00:40]} Qf5 {[%emt 0:02:30]} 29. Qxc1 {[%emt 0:02:06]} Qxf3 {[%emt 0:00:05]} 30. Qe3 {[%emt 0:00:34]} Qxe3 {[%emt 0:11:47]} 31. Nxe3 {[%emt 0:03:47][%mdl 4096] Endgame KN-KN} Ne6 {[%emt 0:00:05]} 32. Nc2 {[%emt 0:04:31]} Kf8 {[%emt 0:00:13]} 33. Kg2 {[%emt 0:00:07]} Ke7 {[%emt 0:00:05]} 34. f4 {[%emt 0:00:12]} Kd6 {[%emt 0:01:52]} 35. Kf3 {[%emt 0:00:17]} Nd8 {[%emt 0:00:13]} 36. Ke3 {[%emt 0:00:31]} Nc6 {[%emt 0:00:22]} 37. Kd3 {[%emt 0:00:17]} Na5 {[%emt 0:02:25]} 38. Kc3 {[%emt 0:04:25]} Nb7 {[%emt 0:00:19]} 39. Ne3 {[%emt 0:00:40]} Ke6 {[%emt 0:00:35]} 40. Kb4 {[%emt 0:00:00] aiming for Kb5.} Nd6 {[%emt 0:00:00]} 41. a5 {[%emt 0:00:00]} Nf5 {[%emt 0:00:00]} 42. Nxf5 {[%emt 0:00:00]} Kxf5 {[%emt 0:00:00]} 43. axb6 {[%emt 0:00:00][%mdl 8192] Black keeps a firm grip on the game.} (43. a6 $1 $11) 43... axb6 {[%emt 0:00:00] White must now prevent ...Ke4. KP-KP} 44. Kb5 {[%emt 0:00:00]} Ke4 {[%emt 0:00:00]} 45. Kxb6 {[%emt 0:00:00] White threatens Kc5 and mate.} Kxd4 {[%emt 0:00:00]} 46. Kc6 $2 {[%emt 0:00:00]} (46. b4 Ke4 47. Kc7) 46... Ke4 $19 {[%emt 0:00:00]} 47. b4 {[%emt 0:00:00]} d4 {[%emt 0:00:00]} 48. b5 {[%emt 0:00:00]} d3 {[%emt 0:00:00]} 49. b6 {[%emt 0:00:00]} d2 {[%emt 0:00:00]} 50. b7 {[%emt 0:00:00]} d1=Q {[%emt 0:00:00]} 51. b8=Q {[%emt 0:00:00] Inhibits Qb3. KQ-KQ} Qd5+ {[%emt 0:00:00]} 52. Kc7 {[%emt 0:00:00]} Kf3 {[%emt 0:00:00]} 53. Qb2 {[%emt 0:00:00]} Kxg3 {[%emt 0:00:00]} 54. Qxg7 {[%emt 0:00:03]} Kxh3 {[%emt 0:01:53]} 55. Qh6+ {[%emt 0:02:35]} Kg4 {[%emt 0:00:23]} 56. Qh2 {[%emt 0:00:37]} Qc4+ {[%emt 0:00:36]} 57. Kd7 {[%emt 0:00:22]} Qxf4 {[%emt 0:00:03]} 58. Qe2+ {[%emt 0:00:15]} Kg5 {[%emt 0:01:18]} 59. Ke7 {[%emt 0:02:37]} f5 {[%emt 0:04:54]} 60. Kf7 {[%emt 0:00:26]} Qe4 {[%emt 0:01:38]} (60... Qc7+ $142 61. Ke8 Qc6+ 62. Kd8 f4 63. Qe5+ Kg4 64. Qd4 Kf5 65. Qd3+ Ke5 66. Qf1 f3 67. Qf2 Kf5 68. Qg1 g5 69. Qg3 g4 70. Qf2 Qd6+ 71. Ke8 Kf4 72. Qh4 Qd4 73. Qh6+ Kg3 74. Qh1 f2 75. Qf1 Kf4 76. Kf7 g3 77. Ke7 Qe4+ 78. Kd8 Kf3 79. Qh1+ g2 80. Qh3+ Ke2 81. Qh5+ Qf3 82. Qe5+ Qe3 83. Qh5+ Ke1 84. Kc8 f1=Q 85. Qh4+ Kd2 86. Qb4+ Kc1 87. Kd7 Qf7+ 88. Kc6 g1=Q 89. Qf4 Qexf4 90. Kb5 Qd5+ 91. Ka6 Qh6#) 61. Qb5 {[%emt 0:03:53]} Qd4 $2 {[%emt 0:01:08]} (61... Kh6 {( -> ...f4)} 62. Qb2 Qd5+ 63. Ke7 f4) 62. Qc6 {[%emt 0:01:00]} Qa7+ {[%emt 0:00:02]} 63. Ke6 $2 {[%emt 0:00:24]} (63. Kf8) 63... Qa2+ {[%emt 0:00:22]} 64. Ke7 {[%emt 0:00:55]} Kh6 {[%emt 0:02:25] Strongly threatening ...f4.} 65. Qc3 {[%emt 0:06:00]} Qa7+ {[%emt 0:00:40]} 66. Ke6 {[%emt 0:00:19]} Qb6+ {[%emt 0:00:45]} 67. Ke5 {[%emt 0:01:29]} Qb7 {[%emt 0:00:27]} (67... Qb8+ $142 68. Ke6 Qe8+ 69. Kd6 g5 70. Qc4 Kg6 71. Qa6 g4 72. Kc7+ Kg5 73. Qd6 Qf7+ 74. Kb8 f4 75. Qd2 g3 76. Qd8+ Qf6 77. Qg8+ Kh6 78. Qc8 Qe5+ 79. Kb7 Qd5+ 80. Kb8 g2 81. Qh8+ Kg6 82. Qe8+ Kg5 83. Qe7+ Kg4 84. Qg7+ Qg5 85. Qd4 Kh4 86. Qg1 f3 87. Qh2+ Kg4 88. Qg1 Kg3 89. Qb6 f2 90. Ka7 f1=Q 91. Qb3+ Kh2 92. Qb8+ Qgf4 93. Qh8+ Kg1 94. Qg7 Qe3+ 95. Ka8 Qa6+ 96. Kb8 Qeb6+ 97. Qb7 Qbxb7#) 68. Qh3+ {[%emt 0:06:35]} (68. Qd2+ $19 Kg7 69. Kf4) 68... Kg7 {[%emt 0:00:01]} 69. Qc3 {[%emt 0:07:29]} Qe4+ {[%emt 0:00:02]} 70. Kd6+ {[%emt 0:00:06]} Kh6 {[%emt 0:00:10]} 71. Qf6 {[%emt 0:00:36]} Kh5 {[%emt 0:00:40]} 72. Qh8+ {[%emt 0:00:17]} Kg4 {[%emt 0:00:13]} 73. Qa1 {[%emt 0:00:57]} f4 {[%emt 0:00:51]} 74. Qg1+ {[%emt 0:00:16]} Kh3 {[%emt 0:00:01]} 75. Qf1+ {[%emt 0:00:31]} Kg3 {[%emt 0:00:03]} 76. Qg1+ {[%emt 0:00:29]} Qg2 {[%emt 0:00:05]} 77. Qe1+ {[%emt 0:00:15]} Qf2 {[%emt 0:00:26]} 78. Qe5 {[%emt 0:02:36]} Qd2+ {[%emt 0:00:41]} 79. Kc6 {[%emt 0:00:13]} Qc2+ {[%emt 0:00:22]} 80. Kd6 {[%emt 0:00:28]} Kg4 {[%emt 0:00:27]} 81. Qe6+ {[%emt 0:00:37]} Qf5 {[%emt 0:00:22]} 82. Qe2+ {[%emt 0:00:05]} f3 {[%emt 0:00:02]} 83. Qf2 {[%emt 0:00:11]} Qd3+ {[%emt 0:01:05]} 84. Kc5 {[%emt 0:00:31]} g5 {[%emt 0:01:24]} 85. Qg1+ {[%emt 0:00:48]} Kf5 {[%emt 0:00:03]} (85... Kf4 $142 86. Qh2+ Ke4) 86. Qf2 {[%emt 0:00:47]} Qe2 {[%emt 0:00:10]} 87. Qg3 {[%emt 0:01:02]} Qe5+ {[%emt 0:00:04] Weighted Error Value: White=0.72/Black=0.19 (very precise)} 0-1

[Event "15th Arad Open 2022"]
[Site "Arad"]
[Date "2022.08.10"]
[Round "4.11"]
[White "Padurean, Daniel-Cristian"]
[Black "Tamas, Christian-Arrydan"]
[Result "1-0"]
[ECO "B21"]
[WhiteElo "2126"]
[BlackElo "1913"]
[Annotator "NA RC"]
[PlyCount "129"]
[EventDate "2022.08.08"]
[EventType "swiss"]
[EventCountry "ROU"]
[SourceTitle "playchess.com"]
[Source "ChessBase"]
[SourceQuality "1"]
[TimeControl "5400+30"]

1. e4 {[%emt 0:00:03]} c5 {[%emt 0:00:28]} 2. d4 {[%emt 0:00:08]} cxd4 {[%emt 0:00:11]} 3. c3 {[%emt 0:00:06]} dxc3 {[%emt 0:00:12]} 4. Nxc3 {[%emt 0:00:06]} g6 {[%emt 0:00:09]} 5. Nf3 {[%emt 0:02:38]} Nc6 {[%emt 0:00:16]} 6. e5 {[%emt 0:06:20]} Bg7 {[%emt 0:00:31]} 7. Bc4 {[%emt 0:00:05]} Nh6 {[%emt 0:00:10]} 8. Bf4 {[%emt 0:02:24]} O-O {[%emt 0:00:20]} 9. O-O {[%emt 0:02:46]} d6 {[%emt 0:00:17]} 10. exd6 {[%emt 0:01:33]} exd6 {[%emt 0:00:11]} 11. Qxd6 {[%emt 0:00:46]} Bg4 {[%emt 0:03:34]} 12. Ng5 {[%emt 0:05:33]} Qxd6 {[%emt 0:08:36]} 13. Bxd6 {[%emt 0:00:06]} Rfd8 {[%emt 0:00:07]} 14. Bc5 {[%emt 0:06:13]} (14. Nce4 $15) 14... Rac8 {[%emt 0:03:05]} ({Black should try} 14... Na5 $1 $15 15. Bb3 Nxb3 16. axb3 b6) 15. h3 {[%emt 0:14:21] [#]} (15. Bb3 $11) 15... Ne5 {[%emt 0:03:06]} (15... Na5 $1 $19 {[%cal Ra5c4]} 16. Be7 Rd7) 16. Bb3 $17 {[%emt 0:09:39]} Rxc5 {[%emt 0:00:50]} 17. Nce4 {[%emt 0:05:43]} Rcc8 {[%emt 0:05:01]} 18. hxg4 Nhxg4 {[%emt 0:01:20]} 19. Rac1 {[%emt 0:10:21]} h6 {[%emt 0:13:22]} 20. Nxf7 {[%emt 0:06:13]} Nxf7 {[%emt 0:00:15]} 21. Bxf7+ {[%emt 0:03:37]} Kh7 {[%emt 0:01:42]} 22. Be6 {[%emt 0:06:18]} Rxc1 {[%emt 0:00:18]} 23. Rxc1 {[%emt 0:00:03]} Re8 {[%emt 0:02:33]} 24. Ng5+ {[%emt 0:01:41]} hxg5 {[%emt 0:00:26]} 25. Bxg4 {[%emt 0:00:05]} Re7 {[%emt 0:00:53]} 26. b3 {[%emt 0:00:33]} Bd4 {[%emt 0:02:57]} 27. Rd1 {[%emt 0:00:22]} Bb6 {[%emt 0:00:56]} 28. Kf1 {[%emt 0:00:53]} Rf7 {[%emt 0:00:12]} 29. Rd2 {[%emt 0:00:05]} Kg7 {[%emt 0:00:28]} 30. Be6 {[%emt 0:00:11]} Re7 31. Bc4 {[%emt 0:00:30]} Bc7 32. a4 {[%emt 0:00:30]} Kf6 33. Rd3 {[%emt 0:00:30]} Be5 34. Rd8 {[%emt 0:00:30]} Bc3 35. g3 {[%emt 0:00:30]} Be5 36. Rf8+ {[%emt 0:00:30]} Kg7 37. Rg8+ {[%emt 0:00:30]} Kh7 38. Kg2 {[%emt 0:00:30]} a5 39. Kf3 {[%emt 0:00:30]} Bd4 40. Rd8 {[%emt 0:00:30]} Bb6 41. Rd6 {[%emt 0:00:30]} Bc7 42. Rd5 {[%emt 0:00:30]} Kh6 43. Rc5 {[%emt 0:00:30]} Bb6 44. Rb5 {[%emt 0:00:30]} Bd8 45. Bd5 {[%emt 0:00:30]} b6 46. Bc4 {[%emt 0:00:30]} Rd7 47. Ke4 {[%emt 0:00:30]} Bc7 48. g4 {[%emt 0:00:30]} Rd8 49. f3 {[%emt 0:00:30]} Rd7 50. Bd5 {[%emt 0:00:30]} Kg7 51. Kd4 {[%emt 0:00:30]} Kf6 52. Kc4 {[%emt 0:00:30]} Re7 53. b4 {[%emt 0:00:30]} axb4 54. Rxb4 {[%emt 0:00:30]} Re5 55. Rb1 {[%emt 0:00:30]} Bd8 56. Rd1 {[%emt 0:00:30]} Re2 57. Be4 {[%emt 0:00:30]} Be7 58. Rb1 {[%emt 0:00:30]} Bd8 59. Kb5 {[%emt 0:00:30]} Rg2 60. Rc1 {[%emt 0:00:30]} Rb2+ 61. Ka6 {[%emt 0:00:30]} Rb4 62. Bc6 {[%emt 0:00:30]} Be7 63. Bb5 {[%emt 0:00:30]} Bd8 64. Rd1 {[%emt 0:00:30]} Ke7 65. Rd7+ {[%emt 0:00:30]} 1-0

[Event "15th Arad Open 2022"]
[Site "Arad"]
[Date "2022.08.10"]
[Round "4.12"]
[White "Panc, Samuel"]
[Black "Ionescu, Irina"]
[Result "1/2-1/2"]
[ECO "B20"]
[WhiteElo "1927"]
[BlackElo "2125"]
[Annotator "TA"]
[PlyCount "50"]
[EventDate "2022.08.08"]
[EventType "swiss"]
[EventCountry "ROU"]
[SourceTitle "playchess.com"]
[Source "ChessBase"]
[SourceQuality "1"]
[TimeControl "5400+30"]

{[%evp 16,50,19,10,11,15,33,36,37,24,25,14,45,19,45,33,41,34,33,30,29,24,27,27,22,29,17,19,16,0,25,16,16,22,12,16,0]} 1. e4 {[%emt 0:00:01]} e6 {[%emt 0:03:37]} 2. d3 {[%emt 0:00:18]} c5 {[%emt 0:00:28]} 3. g3 {[%emt 0:01:27]} Nc6 {[%emt 0:00:10]} 4. f4 {[%emt 0:00:31]} g6 {[%emt 0:00:35]} 5. Nf3 {[%emt 0:00:17]} Bg7 {[%emt 0:00:07]} 6. c3 {[%emt 0:00:04]} Nge7 {[%emt 0:00:48]} 7. Be3 {[%emt 0:00:18]} b6 {[%emt 0:00:58]} 8. Bg2 {[%emt 0:00:05]} O-O {[%emt 0:01:51]} 9. O-O {[%emt 0:00:08]} d5 {[%emt 0:05:29] B20: Sicilian: Unusual White 2nd moves.} 10. e5 {[%emt 0:00:08]} Ba6 {[%emt 0:02:27]} 11. Bf2 {[%emt 0:01:56]} Rc8 {[%emt 0:01:07] White is slightly better.} 12. Re1 {[%emt 0:00:27]} Qd7 {[%emt 0:04:07]} 13. Na3 {[%emt 0:00:45]} Rfd8 {[%emt 0:15:32]} 14. Nc2 {[%emt 0:02:49]} Qc7 {[%emt 0:22:55] [#]} 15. d4 $146 {[%emt 0:06:14]} ({Predecessor:} 15. h4 h5 16. Qe2 Nf5 17. Bh3 Nce7 18. Ne3 Nxe3 19. Bxe3 d4 20. cxd4 Nd5 21. Bf2 {½-½ (34) Burovic,R (2316)-Budimir,B (2233) Paracin 2017}) 15... cxd4 {[%emt 0:01:49]} 16. Ncxd4 {[%emt 0:02:39]} Nxd4 {[%emt 0:02:37]} 17. Nxd4 {[%emt 0:00:07]} Bf8 {[%emt 0:03:00]} 18. g4 {[%emt 0:04:43][%cal Of4f5]} Nc6 {[%emt 0:00:59]} 19. Qf3 {[%emt 0:03:03]} Nxd4 20. Bxd4 {[%emt 0:00:35]} Bc5 {[%emt 0:08:31]} 21. Rad1 {[%emt 0:00:57]} Qe7 {[%emt 0:01:23]} 22. Qg3 {[%emt 0:05:05]} Kh8 {[%emt 0:04:19]} 23. Kh1 {[%emt 0:12:33]} Bxd4 {[%emt 0:00:30] The position is equal.} 24. Rxd4 {[%emt 0:00:05]} Rc4 {[%emt 0:00:19]} 25. Red1 {[%emt 0:01:01]} Rxd4 {[%emt 0:04:34] Weighted Error Value: White=0.06 (flawless) /Black=0.07 (flawless)} 1/2-1/2

[Event "15th Arad Open 2022"]
[Site "Arad"]
[Date "2022.08.10"]
[Round "4.13"]
[White "Tampea, Radu"]
[Black "Ciocani, Iosif"]
[Result "0-1"]
[ECO "B27"]
[WhiteElo "2093"]
[BlackElo "2012"]
[Annotator "NA RC"]
[PlyCount "112"]
[EventDate "2022.08.08"]
[EventType "swiss"]
[EventCountry "ROU"]
[SourceTitle "playchess.com"]
[Source "ChessBase"]
[SourceQuality "1"]
[TimeControl "5400+30"]

1. e4 {[%emt 0:00:03]} c5 {[%emt 0:02:12]} 2. Nf3 {[%emt 0:00:51]} g6 {[%emt 0:02:37]} 3. Bc4 {[%emt 0:00:25]} Bg7 {[%emt 0:00:44]} 4. O-O {[%emt 0:00:14]} Nc6 {[%emt 0:02:53]} 5. c3 {[%emt 0:01:38]} d6 {[%emt 0:01:22]} 6. d4 {[%emt 0:00:00]} cxd4 {[%emt 0:08:21]} 7. cxd4 {[%emt 0:00:53]} Nf6 {[%emt 0:00:14]} 8. d5 {[%emt 0:00:39]} Ne5 {[%emt 0:03:02]} 9. Nxe5 {[%emt 0:03:48]} dxe5 {[%emt 0:00:07]} 10. Nc3 {[%emt 0:01:29]} O-O {[%emt 0:00:23]} 11. Bg5 {[%emt 0:11:02]} Ne8 {[%emt 0:16:54]} 12. Qd2 {[%emt 0:10:00]} Nd6 {[%emt 0:00:36]} 13. Be2 $14 {[%emt 0:00:12]} f6 {[%emt 0:09:22]} 14. Bh6 {[%emt 0:04:58]} Bxh6 {[%emt 0:00:30]} 15. Qxh6 {[%emt 0:00:30]} Qb6 {[%emt 0:05:08]} 16. Qd2 {[%emt 0:16:01]} Bd7 {[%emt 0:01:38]} 17. Rfb1 {[%emt 0:11:20]} Rac8 {[%emt 0:02:02]} 18. a4 {[%emt 0:09:30]} Qb4 {[%emt 0:06:57]} 19. Qe3 {[%emt 0:01:16]} a6 20. f3 {[%emt 0:00:30]} Rc7 21. g3 {[%emt 0:00:30]} Rfc8 22. Kg2 {[%emt 0:00:30]} Qd4 23. Kf2 {[%emt 0:00:30]} Kg7 24. Bd3 {[%emt 0:00:30]} Qb4 25. Kg2 {[%emt 0:00:30]} Nc4 26. Bxc4 {[%emt 0:00:30]} Rxc4 27. f4 {[%emt 0:00:30]} exf4 28. gxf4 {[%emt 0:00:30]} e6 29. a5 {[%emt 0:00:30]} Qb3 30. Qd2 {[%emt 0:00:30]} exd5 31. exd5 {[%emt 0:00:30]} Qb4 32. Re1 {[%emt 0:00:30]} Rxf4 33. Re7+ {[%emt 0:00:30]} Qxe7 34. Qxf4 {[%emt 0:00:30]} g5 35. Qf2 {[%emt 0:00:30]} Rc4 36. Re1 {[%emt 0:00:30]} Qd6 37. Qe3 {[%emt 0:00:30]} Rg4+ 38. Kh1 {[%emt 0:00:30]} Kf7 39. Rf1 {[%emt 0:00:30]} Rh4 40. Rf2 {[%emt 0:00:30]} Rf4 41. Rxf4 {[%emt 0:00:30]} gxf4 42. Qd3 {[%emt 0:00:30]} Kg7 43. Qd4 {[%emt 0:00:30]} Qe5 44. Qxe5 {[%emt 0:00:30]} fxe5 45. Ne4 {[%emt 0:00:30]} Kf7 46. Kg2 {[%emt 0:00:30]} Ke7 47. Kf3 {[%emt 0:00:30]} Bf5 48. Nc5 {[%emt 0:00:30]} Kd6 49. Nxb7+ {[%emt 0:00:30]} Kxd5 50. Nd8 {[%emt 0:00:30]} Bg6 51. b4 {[%emt 0:00:30]} Bh5+ 52. Kf2 {[%emt 0:00:30]} Kc4 53. Nc6 {[%emt 0:00:30]} e4 54. Ne7 {[%emt 0:00:30]} e3+ 55. Kf1 {[%emt 0:00:30]} f3 56. b5 {[%emt 0:00:30]} Bg4 0-1

[Event "15th Arad Open 2022"]
[Site "Arad"]
[Date "2022.08.10"]
[Round "4.14"]
[White "Butolo, Alexandru-Mircea"]
[Black "Coicev, Matei-Andrei"]
[Result "1-0"]
[ECO "A32"]
[WhiteElo "1863"]
[BlackElo "2087"]
[Annotator "NA RC"]
[PlyCount "93"]
[EventDate "2022.08.08"]
[EventType "swiss"]
[EventCountry "ROU"]
[SourceTitle "playchess.com"]
[Source "ChessBase"]
[SourceQuality "1"]
[TimeControl "5400+30"]

1. d4 {[%emt 0:02:53]} Nf6 {[%emt 0:01:19]} 2. c4 {[%emt 0:00:05]} e6 {[%emt 0:00:28]} 3. Nf3 {[%emt 0:00:25]} c5 {[%emt 0:00:54]} 4. Nc3 {[%emt 0:01:54]} cxd4 {[%emt 0:00:38]} 5. Nxd4 {[%emt 0:00:08]} d5 {[%emt 0:00:46]} 6. e3 {[%emt 0:04:52]} Be7 {[%emt 0:01:05]} 7. Be2 {[%emt 0:01:53]} O-O {[%emt 0:02:12]} 8. O-O {[%emt 0:00:32]} a6 {[%emt 0:01:42]} 9. cxd5 {[%emt 0:01:50]} Nxd5 {[%emt 0:00:29]} 10. Nxd5 {[%emt 0:00:18]} Qxd5 {[%emt 0:00:17]} 11. Qc2 {[%emt 0:05:49]} Bf6 {[%emt 0:04:20]} 12. Rd1 {[%emt 0:02:42]} Qa5 {[%emt 0:01:22]} 13. Bd2 {[%emt 0:01:48]} Qb6 {[%emt 0:01:21]} 14. Rac1 {[%emt 0:03:02]} e5 {[%emt 0:04:27]} ({Better is} 14... Bxd4 $14 15. exd4 Nc6) 15. Nb3 {[%emt 0:03:17]} (15. Qxc8 $16 exd4 16. Qc7 Qxc7 17. Rxc7) 15... Nc6 {[%emt 0:01:33]} 16. Bf3 {[%emt 0:03:35]} Nb4 {[%emt 0:11:55]} ({Black should play} 16... Be7 $14) 17. Qc5 {[%emt 0:01:43]} Qxc5 $16 {[%emt 0:01:02]} 18. Nxc5 {[%emt 0:02:24]} Nc6 {[%emt 0:02:13]} 19. Nxb7 {[%emt 0:02:57]} Ne7 {[%emt 0:03:05]} 20. Bb4 {[%emt 0:16:42]} Rb8 {[%emt 0:07:46]} 21. Rc7 {[%emt 0:00:30]} Bxb7 {[%emt 0:00:30]} 22. Rxb7 {[%emt 0:00:30]} Rxb7 {[%emt 0:00:30]} 23. Bxb7 {[%emt 0:00:30]} Rb8 {[%emt 0:00:30]} 24. Bxe7 {[%emt 0:00:30]} Bxe7 {[%emt 0:00:30]} 25. Bxa6 {[%emt 0:00:30]} Rxb2 {[%emt 0:00:30]} 26. Bc4 {[%emt 0:00:30]} Rc2 {[%emt 0:00:30]} 27. Bb3 {[%emt 0:00:30]} Rc7 {[%emt 0:00:30]} 28. g3 {[%emt 0:00:30]} g6 {[%emt 0:00:30]} 29. Rd5 {[%emt 0:00:30]} Rc5 {[%emt 0:00:30]} 30. Rxc5 {[%emt 0:00:30]} Bxc5 {[%emt 0:00:30]} 31. a4 {[%emt 0:00:30]} Kf8 {[%emt 0:00:30]} 32. a5 {[%emt 0:00:30]} Ke7 {[%emt 0:00:30]} 33. a6 {[%emt 0:00:30]} f5 {[%emt 0:00:30]} 34. Kf1 {[%emt 0:00:30]} g5 {[%emt 0:00:30]} 35. Bc2 {[%emt 0:00:30]} Ke6 {[%emt 0:00:30]} 36. g4 {[%emt 0:00:30]} e4 {[%emt 0:00:30]} 37. gxf5+ {[%emt 0:00:30]} Kxf5 {[%emt 0:00:30]} 38. h3 {[%emt 0:00:30]} h5 {[%emt 0:00:30]} 39. Bd1 {[%emt 0:00:30]} Kg6 {[%emt 0:00:30]} 40. Kg2 {[%emt 0:00:30]} Bb6 {[%emt 0:00:30]} 41. Ba4 {[%emt 0:00:30]} Kf6 {[%emt 0:00:30]} 42. Bc6 {[%emt 0:00:30]} Ke5 {[%emt 0:00:30]} 43. h4 {[%emt 0:00:30]} gxh4 {[%emt 0:00:30]} 44. Kh3 {[%emt 0:00:30]} Kd6 {[%emt 0:00:30]} 45. Bxe4 {[%emt 0:00:30]} Kc7 {[%emt 0:00:30]} 46. Kxh4 {[%emt 0:00:30]} Ba5 {[%emt 0:00:30]} 47. a7 {[%emt 0:00:30]} 1-0